[Event "Titled Tuesday Blitz January 11 2022"]
[White "Ozer, Omer Faruk"]
[Black "Kamsky, Gata"]
[WhiteFideId "6354564"]
[BlackFideId "2000024"]
[WhiteElo "2050"]
[BlackElo "2645"]
[Result "0-1"]
[Round "03"]
[TimeControl "180+1"]
[Date "2022.01.11"]
[WhiteClock "0:00:02"]
[BlackClock "0:00:14"]

1. e4 {[%clk 0:03:00]}  e5 {[%clk 0:02:58]} 2. Nc3 {[%clk 0:03:00]}  Nc6 {[%clk 0:02:58]} 3. g3 {[%clk 0:03:00]}  Bc5 {[%clk 0:02:57]} 4. Bg2 {[%clk 0:03:00]}  d6 {[%clk 0:02:57]} 5. d3 {[%clk 0:02:58]}  a6 {[%clk 0:02:55]} 6. Be3 {[%clk 0:02:53]}  Bxe3 {[%clk 0:02:54]} 7. fxe3 {[%clk 0:02:54]}  h5 {[%clk 0:02:52]} 8. Nf3 {[%clk 0:02:46]}  Nge7 {[%clk 0:02:31]} 9. Qd2 {[%clk 0:02:40]}  Bg4 {[%clk 0:02:26]} 10. O-O-O {[%clk 0:02:33]}  Ng6 {[%clk 0:02:23]} 11. Rdf1 {[%clk 0:02:25]}  Nce7 {[%clk 0:02:17]} 12. h3 {[%clk 0:02:12]}  Bd7 {[%clk 0:02:13]} 13. d4 {[%clk 0:01:58]}  f6 {[%clk 0:02:09]} 14. h4 {[%clk 0:01:47]}  c6 {[%clk 0:02:09]} 15. Qf2 {[%clk 0:01:38]}  Qc7 {[%clk 0:02:04]} 16. Nd2 {[%clk 0:01:37]}  b5 {[%clk 0:02:00]} 17. Bh3 {[%clk 0:01:29]}  Bxh3 {[%clk 0:01:58]} 18. Rxh3 {[%clk 0:01:30]}  Qd7 {[%clk 0:01:54]} 19. Rh2 {[%clk 0:01:25]}  Ng8 {[%clk 0:01:54]} 20. Rd1 {[%clk 0:01:15]}  Nh6 {[%clk 0:01:52]} 21. Qe2 {[%clk 0:01:14]}  Ng4 {[%clk 0:01:49]} 22. Rhh1 {[%clk 0:01:13]}  Ne7 {[%clk 0:01:44]} 23. Nb3 {[%clk 0:01:10]}  Qc7 {[%clk 0:01:42]} 24. Kb1 {[%clk 0:01:06]}  O-O {[%clk 0:01:38]} 25. Qf3 {[%clk 0:00:53]}  a5 {[%clk 0:01:34]} 26. Ne2 {[%clk 0:00:49]}  a4 {[%clk 0:01:33]} 27. Nbc1 {[%clk 0:00:49]}  b4 {[%clk 0:01:32]} 28. Nd3 {[%clk 0:00:44]}  c5 {[%clk 0:01:24]} 29. Nf2 {[%clk 0:00:40]}  Nxf2 {[%clk 0:01:23]} 30. Qxf2 {[%clk 0:00:41]}  cxd4 {[%clk 0:01:22]} 31. exd4 {[%clk 0:00:41]}  Rfc8 {[%clk 0:01:21]} 32. Rc1 {[%clk 0:00:40]}  Nc6 {[%clk 0:01:12]} 33. g4 {[%clk 0:00:27]}  a3 {[%clk 0:01:12]} 34. b3 {[%clk 0:00:08]}  Nxd4 {[%clk 0:01:11]} 35. c4 {[%clk 0:00:09]}  bxc3 {[%clk 0:00:56]} 36. Nxc3 {[%clk 0:00:09]}  hxg4 {[%clk 0:00:50]} 37. Nd5 {[%clk 0:00:09]}  Qb7 {[%clk 0:00:47]} 38. h5 {[%clk 0:00:08]}  f5 {[%clk 0:00:33]} 39. h6 {[%clk 0:00:08]}  gxh6 {[%clk 0:00:28]} 40. Nf6+ {[%clk 0:00:05]}  Kg7 {[%clk 0:00:26]} 41. Nh5+ {[%clk 0:00:05]}  Kg6 {[%clk 0:00:25]} 42. exf5+ {[%clk 0:00:05]}  Nxf5 {[%clk 0:00:24]} 43. Ng3 {[%clk 0:00:04]}  Qf3 {[%clk 0:00:23]} 44. Qxf3 {[%clk 0:00:02]}  gxf3 {[%clk 0:00:23]} 45. Rcg1 {[%clk 0:00:02]}  f2 {[%clk 0:00:23]} 46. Rg2 {[%clk 0:00:03]}  Nxg3 {[%clk 0:00:22]} 47. Rxg3+ {[%clk 0:00:04]}  Kh7 {[%clk 0:00:20]} 48. Rgh3 {[%clk 0:00:02]}  Rg8 {[%clk 0:00:18]} 49. Rxh6+ {[%clk 0:00:03]}  Kg7 {[%clk 0:00:18]} 50. R6h2 {[%clk 0:00:02]}  Raf8 {[%clk 0:00:16]} 51. Rf1 {[%clk 0:00:03]}  Kf7 {[%clk 0:00:14]} 52. Rhxf2+ {[%clk 0:00:03]}  Ke7 {[%clk 0:00:14]} 53. Kc2 {[%clk 0:00:01]}  Rxf2+ {[%clk 0:00:14]} 54. Rxf2 {[%clk 0:00:01]}  d5 {[%clk 0:00:14]} 55. b4 {[%clk 0:00:02]}  Rg3 {[%clk 0:00:14]} 56. Re2 {[%clk 0:00:02]}  Kd6 {[%clk 0:00:14]} 0-1


[Site "https://www.chess.com"]

[Event "Titled Tuesday Blitz January 11 2022"]
[White "Pakleza, Zbigniew"]
[Black "Cunha, Lucas Aguiar"]
[WhiteFideId "1119290"]
[BlackFideId "2125404"]
[WhiteElo "2467"]
[BlackElo "2361"]
[Result "1-0"]
[Round "03"]
[TimeControl "180+1"]
[Date "2022.01.11"]
[WhiteClock "0:00:15"]
[BlackClock "0:00:12"]

1. d4 {[%clk 0:03:00]}  Nf6 {[%clk 0:02:58]} 2. Nf3 {[%clk 0:03:01]}  c5 {[%clk 0:02:58]} 3. c3 {[%clk 0:03:01]}  d5 {[%clk 0:02:58]} 4. Bf4 {[%clk 0:03:00]}  Nc6 {[%clk 0:02:58]} 5. Nbd2 {[%clk 0:03:00]}  Qb6 {[%clk 0:02:58]} 6. Qb3 {[%clk 0:03:00]}  c4 {[%clk 0:02:58]} 7. Qc2 {[%clk 0:03:01]}  Bf5 {[%clk 0:02:55]} 8. Qxf5 {[%clk 0:03:00]}  Qxb2 {[%clk 0:02:55]} 9. Qb1 {[%clk 0:02:15]}  Qxc3 {[%clk 0:02:55]} 10. Qc1 {[%clk 0:02:13]}  Qa5 {[%clk 0:02:53]} 11. e3 {[%clk 0:02:08]}  e6 {[%clk 0:02:52]} 12. a3 {[%clk 0:01:59]}  Ne4 {[%clk 0:02:28]} 13. Be2 {[%clk 0:01:48]}  Nc3 {[%clk 0:02:27]} 14. Bd1 {[%clk 0:01:20]}  Nb5 {[%clk 0:02:10]} 15. O-O {[%clk 0:01:13]}  Bxa3 {[%clk 0:02:10]} 16. Qc2 {[%clk 0:01:04]}  Qb6 {[%clk 0:01:47]} 17. Rb1 {[%clk 0:00:53]}  Be7 {[%clk 0:01:25]} 18. Be2 {[%clk 0:00:44]}  O-O {[%clk 0:01:20]} 19. Ne5 {[%clk 0:00:43]}  Nxe5 {[%clk 0:01:16]} 20. Bxe5 {[%clk 0:00:43]}  Qa5 {[%clk 0:00:54]} 21. Ra1 {[%clk 0:00:31]}  Qc3 {[%clk 0:00:46]} 22. Qa2 {[%clk 0:00:31]}  Qa3 {[%clk 0:00:26]} 23. Qb1 {[%clk 0:00:29]}  Qb4 {[%clk 0:00:25]} 24. Qc1 {[%clk 0:00:18]}  Nc3 {[%clk 0:00:24]} 25. Bf3 {[%clk 0:00:18]}  a5 {[%clk 0:00:23]} 26. h3 {[%clk 0:00:17]}  a4 {[%clk 0:00:23]} 27. e4 {[%clk 0:00:17]}  a3 {[%clk 0:00:20]} 28. Re1 {[%clk 0:00:16]}  Rfe8 {[%clk 0:00:19]} 29. exd5 {[%clk 0:00:16]}  exd5 {[%clk 0:00:20]} 30. Re3 {[%clk 0:00:17]}  Nb5 {[%clk 0:00:19]} 31. Bxd5 {[%clk 0:00:17]}  c3 {[%clk 0:00:18]} 32. Ne4 {[%clk 0:00:16]}  Rec8 {[%clk 0:00:15]} 33. Rf3 {[%clk 0:00:15]}  Qb2 {[%clk 0:00:12]} 34. Rxf7 {[%clk 0:00:14]}  Bf8 {[%clk 0:00:11]} 35. Rxg7+ {[%clk 0:00:14]}  Kh8 {[%clk 0:00:12]} 36. Rg8# {[%clk 0:00:15]} 1-0


[Site "https://www.chess.com"]

[Event "Titled Tuesday Blitz January 11 2022"]
[White "Piesik, Piotr"]
[Black "Kravtsiv, Martyn"]
[WhiteFideId "1136194"]
[BlackFideId "14113147"]
[WhiteElo "2232"]
[BlackElo "2694"]
[Result "0-1"]
[Round "03"]
[TimeControl "180+1"]
[Date "2022.01.11"]
[WhiteClock "0:01:44"]
[BlackClock "0:00:42"]

1. Nf3 {[%clk 0:02:57]}  d5 {[%clk 0:02:59]} 2. g3 {[%clk 0:02:57]}  Nf6 {[%clk 0:02:58]} 3. Bg2 {[%clk 0:02:57]}  c5 {[%clk 0:02:58]} 4. O-O {[%clk 0:02:54]}  Nc6 {[%clk 0:02:57]} 5. d3 {[%clk 0:02:54]}  e5 {[%clk 0:02:56]} 6. Nbd2 {[%clk 0:02:54]}  Bd6 {[%clk 0:02:55]} 7. e4 {[%clk 0:02:54]}  d4 {[%clk 0:02:55]} 8. Nc4 {[%clk 0:02:54]}  Bc7 {[%clk 0:02:54]} 9. a4 {[%clk 0:02:55]}  O-O {[%clk 0:02:53]} 10. Ne1 {[%clk 0:02:55]}  Be6 {[%clk 0:02:47]} 11. f4 {[%clk 0:02:55]}  exf4 {[%clk 0:02:19]} 12. gxf4 {[%clk 0:02:56]}  Re8 {[%clk 0:02:09]} 13. e5 {[%clk 0:02:55]}  Bg4 {[%clk 0:02:09]} 14. Nf3 {[%clk 0:02:50]}  Nd5 {[%clk 0:02:07]} 15. Qe1 {[%clk 0:02:47]}  Ncb4 {[%clk 0:01:52]} 16. Qf2 {[%clk 0:02:44]}  Qd7 {[%clk 0:01:49]} 17. Ng5 {[%clk 0:02:39]}  Bf5 {[%clk 0:01:40]} 18. Ne4 {[%clk 0:02:36]}  b6 {[%clk 0:01:35]} 19. Ned6 {[%clk 0:02:32]}  Bxd6 {[%clk 0:01:20]} 20. Nxd6 {[%clk 0:02:33]}  Bh3 {[%clk 0:01:17]} 21. Nxe8 {[%clk 0:02:29]}  Rxe8 {[%clk 0:01:16]} 22. Re1 {[%clk 0:02:11]}  Qg4 {[%clk 0:01:02]} 23. Re2 {[%clk 0:02:11]}  Nxc2 {[%clk 0:00:58]} 24. Qf3 {[%clk 0:01:44]}  Nxa1 {[%clk 0:00:42]} 0-1


[Site "https://www.chess.com"]

[Event "Titled Tuesday Blitz January 11 2022"]
[White "Rasulov, Vugar"]
[Black "Paravyan, David"]
[WhiteFideId "13402390"]
[BlackFideId "4194985"]
[WhiteElo "2560"]
[BlackElo "2569"]
[Result "1-0"]
[Round "03"]
[TimeControl "180+1"]
[Date "2022.01.11"]
[WhiteClock "0:01:56"]
[BlackClock "0:00:01"]

1. d4 {[%clk 0:03:00]}  e6 {[%clk 0:02:57]} 2. e4 {[%clk 0:03:00]}  d5 {[%clk 0:02:56]} 3. Nd2 {[%clk 0:03:00]}  Bd7 {[%clk 0:02:55]} 4. Ngf3 {[%clk 0:02:59]}  dxe4 {[%clk 0:02:55]} 5. Nxe4 {[%clk 0:02:59]}  Bc6 {[%clk 0:02:55]} 6. Neg5 {[%clk 0:03:00]}  Nd7 {[%clk 0:02:48]} 7. Nxf7 {[%clk 0:02:59]}  Kxf7 {[%clk 0:02:44]} 8. Ng5+ {[%clk 0:02:59]}  Ke8 {[%clk 0:02:12]} 9. Bc4 {[%clk 0:02:58]}  Bd5 {[%clk 0:01:24]} 10. Nxe6 {[%clk 0:02:57]}  Bxc4 {[%clk 0:00:54]} 11. Nxd8 {[%clk 0:02:54]}  Kxd8 {[%clk 0:00:54]} 12. b3 {[%clk 0:02:51]}  Be6 {[%clk 0:00:48]} 13. O-O {[%clk 0:02:48]}  Ngf6 {[%clk 0:00:48]} 14. c4 {[%clk 0:02:48]}  Bd6 {[%clk 0:00:42]} 15. Re1 {[%clk 0:02:46]}  Re8 {[%clk 0:00:40]} 16. Bg5 {[%clk 0:02:45]}  h6 {[%clk 0:00:37]} 17. Bh4 {[%clk 0:02:45]}  c6 {[%clk 0:00:21]} 18. d5 {[%clk 0:02:38]}  cxd5 {[%clk 0:00:19]} 19. cxd5 {[%clk 0:02:38]}  Bf7 {[%clk 0:00:18]} 20. Rc1 {[%clk 0:02:28]}  Rc8 {[%clk 0:00:11]} 21. Rxe8+ {[%clk 0:02:26]}  Bxe8 {[%clk 0:00:12]} 22. Rxc8+ {[%clk 0:02:19]}  Kxc8 {[%clk 0:00:13]} 23. Bg3 {[%clk 0:02:18]}  Bc5 {[%clk 0:00:13]} 24. Qc2 {[%clk 0:02:14]}  Kd8 {[%clk 0:00:12]} 25. d6 {[%clk 0:02:09]}  Bf7 {[%clk 0:00:12]} 26. b4 {[%clk 0:02:07]}  Bb6 {[%clk 0:00:12]} 27. a4 {[%clk 0:02:08]}  Ke8 {[%clk 0:00:12]} 28. Qc8+ {[%clk 0:02:06]}  Bd8 {[%clk 0:00:12]} 29. Qxb7 {[%clk 0:02:07]}  Nd5 {[%clk 0:00:05]} 30. b5 {[%clk 0:02:04]}  Be6 {[%clk 0:00:02]} 31. Qxa7 {[%clk 0:02:04]}  Bb6 {[%clk 0:00:02]} 32. Qb7 {[%clk 0:02:00]}  Kf7 {[%clk 0:00:02]} 33. h4 {[%clk 0:01:57]}  Nc3 {[%clk 0:00:02]} 34. Qf3+ {[%clk 0:01:56]}  Ke8 {[%clk 0:00:01]} 35. Qxc3 {[%clk 0:01:56]} 1-0


[Site "https://www.chess.com"]

[Event "Titled Tuesday Blitz January 11 2022"]
[White "Rustemov, Alexander"]
[Black "Solovchuk, Oleksiy"]
[WhiteFideId "4119002"]
[BlackFideId "14115220"]
[WhiteElo "2828"]
[BlackElo "2295"]
[Result "0-1"]
[Round "03"]
[TimeControl "180+1"]
[Date "2022.01.11"]
[WhiteClock "0:00:01"]
[BlackClock "0:00:02"]

1. d4 {[%clk 0:03:00]}  Nf6 {[%clk 0:02:52]} 2. c4 {[%clk 0:03:00]}  e6 {[%clk 0:02:50]} 3. Nf3 {[%clk 0:03:01]}  b6 {[%clk 0:02:50]} 4. a3 {[%clk 0:03:00]}  Bb7 {[%clk 0:02:49]} 5. Nc3 {[%clk 0:03:01]}  d5 {[%clk 0:02:50]} 6. Bg5 {[%clk 0:03:01]}  a6 {[%clk 0:02:47]} 7. cxd5 {[%clk 0:03:00]}  exd5 {[%clk 0:02:47]} 8. e3 {[%clk 0:03:00]}  Nbd7 {[%clk 0:02:46]} 9. Bd3 {[%clk 0:03:00]}  Bd6 {[%clk 0:02:46]} 10. Qc2 {[%clk 0:03:00]}  Qe7 {[%clk 0:02:46]} 11. O-O {[%clk 0:02:51]}  h6 {[%clk 0:02:45]} 12. Bh4 {[%clk 0:02:49]}  O-O {[%clk 0:02:44]} 13. Bf5 {[%clk 0:02:36]}  Rfd8 {[%clk 0:02:43]} 14. Rad1 {[%clk 0:02:31]}  g6 {[%clk 0:02:23]} 15. Bd3 {[%clk 0:02:25]}  Kg7 {[%clk 0:02:20]} 16. Rfe1 {[%clk 0:02:20]}  g5 {[%clk 0:02:06]} 17. Bg3 {[%clk 0:02:20]}  Bxg3 {[%clk 0:02:03]} 18. hxg3 {[%clk 0:02:20]}  Ne4 {[%clk 0:02:02]} 19. b4 {[%clk 0:02:04]}  Rac8 {[%clk 0:01:46]} 20. Qb2 {[%clk 0:02:01]}  Ndf6 {[%clk 0:01:44]} 21. Rb1 {[%clk 0:01:54]}  Rb8 {[%clk 0:01:36]} 22. Rec1 {[%clk 0:01:49]}  Nd6 {[%clk 0:01:19]} 23. a4 {[%clk 0:01:36]}  Nfe4 {[%clk 0:01:18]} 24. b5 {[%clk 0:01:35]}  axb5 {[%clk 0:01:12]} 25. axb5 {[%clk 0:01:33]}  Re8 {[%clk 0:01:08]} 26. Ne5 {[%clk 0:01:19]}  f6 {[%clk 0:01:07]} 27. Bxe4 {[%clk 0:01:15]}  dxe4 {[%clk 0:01:01]} 28. Nc6 {[%clk 0:00:58]}  Bxc6 {[%clk 0:01:00]} 29. bxc6 {[%clk 0:00:59]}  Qe6 {[%clk 0:00:57]} 30. Nb5 {[%clk 0:00:48]}  Nxb5 {[%clk 0:00:51]} 31. Qxb5 {[%clk 0:00:49]}  Ra8 {[%clk 0:00:49]} 32. Ra1 {[%clk 0:00:44]}  h5 {[%clk 0:00:47]} 33. d5 {[%clk 0:00:39]}  Qe5 {[%clk 0:00:45]} 34. Rxa8 {[%clk 0:00:32]}  Rxa8 {[%clk 0:00:44]} 35. Qc4 {[%clk 0:00:24]}  Kg6 {[%clk 0:00:34]} 36. Rd1 {[%clk 0:00:20]}  Ra1 {[%clk 0:00:28]} 37. Rxa1 {[%clk 0:00:19]}  Qxa1+ {[%clk 0:00:28]} 38. Kh2 {[%clk 0:00:19]}  Qe5 {[%clk 0:00:29]} 39. d6 {[%clk 0:00:14]}  Qxd6 {[%clk 0:00:29]} 40. Qg8+ {[%clk 0:00:14]}  Kf5 {[%clk 0:00:30]} 41. Qe8 {[%clk 0:00:13]}  b5 {[%clk 0:00:23]} 42. Qd7+ {[%clk 0:00:10]}  Ke5 {[%clk 0:00:22]} 43. Qe8+ {[%clk 0:00:09]}  Kd5 {[%clk 0:00:22]} 44. Qxh5 {[%clk 0:00:08]}  Kxc6 {[%clk 0:00:21]} 45. Qe8+ {[%clk 0:00:07]}  Kb6 {[%clk 0:00:19]} 46. Qxe4 {[%clk 0:00:07]}  b4 {[%clk 0:00:19]} 47. f4 {[%clk 0:00:07]}  c5 {[%clk 0:00:19]} 48. fxg5 {[%clk 0:00:06]}  fxg5 {[%clk 0:00:19]} 49. Qc4 {[%clk 0:00:06]}  Qe5 {[%clk 0:00:14]} 50. e4 {[%clk 0:00:05]}  Qd4 {[%clk 0:00:14]} 51. Qe6+ {[%clk 0:00:05]}  Kb5 {[%clk 0:00:14]} 52. e5 {[%clk 0:00:06]}  c4 {[%clk 0:00:14]} 53. Qe8+ {[%clk 0:00:06]}  Kc5 {[%clk 0:00:13]} 54. e6 {[%clk 0:00:06]}  Qd3 {[%clk 0:00:05]} 55. Qc8+ {[%clk 0:00:04]}  Kb5 {[%clk 0:00:04]} 56. Qd7+ {[%clk 0:00:04]}  Ka5 {[%clk 0:00:04]} 57. Qc7+ {[%clk 0:00:04]}  Ka4 {[%clk 0:00:04]} 58. Qd7+ {[%clk 0:00:03]}  Kb3 {[%clk 0:00:04]} 59. Qf7 {[%clk 0:00:03]}  Qd5 {[%clk 0:00:03]} 60. Qf6 {[%clk 0:00:02]}  c3 {[%clk 0:00:03]} 61. e7 {[%clk 0:00:02]}  c2 {[%clk 0:00:03]} 62. e8=Q {[%clk 0:00:01]}  c1=Q {[%clk 0:00:03]} 63. Qe2 {[%clk 0:00:01]}  Qc2 {[%clk 0:00:02]} 0-1


[Site "https://www.chess.com"]

[Event "Titled Tuesday Blitz January 11 2022"]
[White "Sadhwani, Raunak"]
[Black "FGHSMN"]
[WhiteFideId "35093487"]
[WhiteElo "2616"]
[BlackElo "2731"]
[Result "0-1"]
[Round "03"]
[TimeControl "180+1"]
[Date "2022.01.11"]
[WhiteClock "0:00:04"]
[BlackClock "0:00:07"]

1. d4 {[%clk 0:03:00]}  Nf6 {[%clk 0:02:58]} 2. Nf3 {[%clk 0:03:00]}  e6 {[%clk 0:02:58]} 3. Bf4 {[%clk 0:03:01]}  c5 {[%clk 0:02:58]} 4. e3 {[%clk 0:03:01]}  d5 {[%clk 0:02:56]} 5. c3 {[%clk 0:02:57]}  Nc6 {[%clk 0:02:55]} 6. Nbd2 {[%clk 0:02:57]}  Bd6 {[%clk 0:02:55]} 7. Bg3 {[%clk 0:02:57]}  Qe7 {[%clk 0:02:53]} 8. Ne5 {[%clk 0:02:56]}  Bxe5 {[%clk 0:02:49]} 9. dxe5 {[%clk 0:02:57]}  Nd7 {[%clk 0:02:49]} 10. Nf3 {[%clk 0:02:53]}  b6 {[%clk 0:02:47]} 11. Bd3 {[%clk 0:02:53]}  Bb7 {[%clk 0:02:47]} 12. Qa4 {[%clk 0:02:50]}  h5 {[%clk 0:02:38]} 13. Bh4 {[%clk 0:02:46]}  Qf8 {[%clk 0:02:37]} 14. Bb5 {[%clk 0:02:45]}  Rc8 {[%clk 0:02:34]} 15. Rd1 {[%clk 0:02:34]}  a6 {[%clk 0:02:25]} 16. Be2 {[%clk 0:02:34]}  b5 {[%clk 0:02:22]} 17. Qf4 {[%clk 0:02:34]}  Ne7 {[%clk 0:02:16]} 18. Bd3 {[%clk 0:02:30]}  Ng6 {[%clk 0:01:51]} 19. Bxg6 {[%clk 0:02:30]}  fxg6 {[%clk 0:01:52]} 20. Qg3 {[%clk 0:02:30]}  Qf5 {[%clk 0:01:48]} 21. O-O {[%clk 0:02:30]}  O-O {[%clk 0:01:23]} 22. Be7 {[%clk 0:02:29]}  Rfe8 {[%clk 0:01:22]} 23. Bd6 {[%clk 0:02:27]}  Qg4 {[%clk 0:01:11]} 24. Nh4 {[%clk 0:02:27]}  g5 {[%clk 0:01:01]} 25. Nf3 {[%clk 0:02:27]}  Qxg3 {[%clk 0:01:00]} 26. fxg3 {[%clk 0:02:26]}  g4 {[%clk 0:00:57]} 27. Ng5 {[%clk 0:02:25]}  Bc6 {[%clk 0:00:51]} 28. Rf7 {[%clk 0:02:24]}  Nb6 {[%clk 0:00:33]} 29. b3 {[%clk 0:02:23]}  c4 {[%clk 0:00:21]} 30. Rdf1 {[%clk 0:02:13]}  cxb3 {[%clk 0:00:21]} 31. axb3 {[%clk 0:02:14]}  Nd7 {[%clk 0:00:18]} 32. h3 {[%clk 0:01:24]}  gxh3 {[%clk 0:00:18]} 33. Nxh3 {[%clk 0:01:19]}  a5 {[%clk 0:00:18]} 34. R7f2 {[%clk 0:01:15]}  a4 {[%clk 0:00:18]} 35. bxa4 {[%clk 0:01:16]}  bxa4 {[%clk 0:00:19]} 36. Nf4 {[%clk 0:01:17]}  a3 {[%clk 0:00:16]} 37. Nxh5 {[%clk 0:01:17]}  Bb5 {[%clk 0:00:14]} 38. Ra1 {[%clk 0:01:12]}  Rxc3 {[%clk 0:00:13]} 39. Nf4 {[%clk 0:01:07]}  Rxe3 {[%clk 0:00:13]} 40. Ng6 {[%clk 0:00:56]}  Bc4 {[%clk 0:00:12]} 41. Bxa3 {[%clk 0:00:33]}  Nxe5 {[%clk 0:00:12]} 42. Nxe5 {[%clk 0:00:31]}  Rxe5 {[%clk 0:00:12]} 43. Bb2 {[%clk 0:00:32]}  Rg5 {[%clk 0:00:12]} 44. Kh2 {[%clk 0:00:30]}  e5 {[%clk 0:00:11]} 45. Ra7 {[%clk 0:00:29]}  Re6 {[%clk 0:00:11]} 46. Bc1 {[%clk 0:00:24]}  Rh5+ {[%clk 0:00:09]} 47. Kg1 {[%clk 0:00:23]}  d4 {[%clk 0:00:08]} 48. Rc7 {[%clk 0:00:23]}  Bd5 {[%clk 0:00:08]} 49. Rd7 {[%clk 0:00:23]}  Bc4 {[%clk 0:00:07]} 50. Rc7 {[%clk 0:00:23]}  Bb3 {[%clk 0:00:07]} 51. Rb2 {[%clk 0:00:19]}  Bd5 {[%clk 0:00:07]} 52. Rb5 {[%clk 0:00:19]}  Be4 {[%clk 0:00:06]} 53. Bb2 {[%clk 0:00:19]}  Rg6 {[%clk 0:00:05]} 54. Bxd4 {[%clk 0:00:19]}  Rxg3 {[%clk 0:00:05]} 55. Rb8+ {[%clk 0:00:06]}  Kh7 {[%clk 0:00:05]} 56. Kf2 {[%clk 0:00:07]}  Rxg2+ {[%clk 0:00:05]} 57. Ke3 {[%clk 0:00:08]}  Bg6 {[%clk 0:00:03]} 58. Bxe5 {[%clk 0:00:05]}  Rxe5+ {[%clk 0:00:03]} 59. Kd4 {[%clk 0:00:06]}  Re4+ {[%clk 0:00:03]} 60. Kd5 {[%clk 0:00:07]}  Rd2+ {[%clk 0:00:03]} 61. Kc6 {[%clk 0:00:08]}  Rc2+ {[%clk 0:00:03]} 62. Kd6 {[%clk 0:00:09]}  Rxc7 {[%clk 0:00:04]} 63. Kxc7 {[%clk 0:00:10]}  Bf5 {[%clk 0:00:04]} 64. Kd6 {[%clk 0:00:10]}  g6 {[%clk 0:00:04]} 65. Rb2 {[%clk 0:00:10]}  Kh6 {[%clk 0:00:04]} 66. Rh2+ {[%clk 0:00:11]}  Kg5 {[%clk 0:00:05]} 67. Kd5 {[%clk 0:00:12]}  Kf4 {[%clk 0:00:05]} 68. Rh4+ {[%clk 0:00:12]}  Kg3 {[%clk 0:00:04]} 69. Rh6 {[%clk 0:00:10]}  g5 {[%clk 0:00:04]} 70. Rh5 {[%clk 0:00:10]}  Rg4 {[%clk 0:00:04]} 71. Ke5 {[%clk 0:00:10]}  Bd3 {[%clk 0:00:04]} 72. Kf6 {[%clk 0:00:10]}  Kf4 {[%clk 0:00:04]} 73. Rh2 {[%clk 0:00:09]}  Rg3 {[%clk 0:00:04]} 74. Rf2+ {[%clk 0:00:09]}  Kg4 {[%clk 0:00:04]} 75. Rd2 {[%clk 0:00:06]}  Be4 {[%clk 0:00:04]} 76. Rd4 {[%clk 0:00:06]}  Re3 {[%clk 0:00:05]} 77. Ke5 {[%clk 0:00:05]}  Kf3 {[%clk 0:00:05]} 78. Rd1 {[%clk 0:00:02]}  g4 {[%clk 0:00:06]} 79. Rf1+ {[%clk 0:00:03]}  Ke2 {[%clk 0:00:06]} 80. Rg1 {[%clk 0:00:03]}  g3 {[%clk 0:00:07]} 81. Kf4 {[%clk 0:00:04]}  Kf2 {[%clk 0:00:07]} 82. Ra1 {[%clk 0:00:04]}  g2 {[%clk 0:00:07]} 83. Rb1 {[%clk 0:00:04]}  Re2 {[%clk 0:00:07]} 0-1


[Site "https://www.chess.com"]

[Event "Titled Tuesday Blitz January 11 2022"]
[White "Senthil Maran K"]
[Black "Horvath, Dominik"]
[WhiteFideId "25035681"]
[BlackFideId "1642561"]
[WhiteElo "2194"]
[BlackElo "2336"]
[Result "1-0"]
[Round "03"]
[TimeControl "180+1"]
[Date "2022.01.11"]
[WhiteClock "0:00:05"]
[BlackClock "0:01:21"]

1. d4 {[%clk 0:03:00]}  Nf6 {[%clk 0:02:55]} 2. Nf3 {[%clk 0:02:59]}  d5 {[%clk 0:02:53]} 3. c4 {[%clk 0:02:57]}  e6 {[%clk 0:02:53]} 4. g3 {[%clk 0:02:56]}  Bb4+ {[%clk 0:02:52]} 5. Bd2 {[%clk 0:02:53]}  a5 {[%clk 0:02:52]} 6. Qc2 {[%clk 0:02:52]}  O-O {[%clk 0:02:51]} 7. Bg2 {[%clk 0:02:39]}  c5 {[%clk 0:02:50]} 8. O-O {[%clk 0:02:38]}  cxd4 {[%clk 0:02:50]} 9. Nxd4 {[%clk 0:02:35]}  Nc6 {[%clk 0:02:50]} 10. Nxc6 {[%clk 0:01:02]}  bxc6 {[%clk 0:02:48]} 11. c5 {[%clk 0:01:03]}  Bxd2 {[%clk 0:02:32]} 12. Nxd2 {[%clk 0:01:03]}  e5 {[%clk 0:02:32]} 13. Rfd1 {[%clk 0:00:34]}  Bg4 {[%clk 0:02:26]} 14. Nc4 {[%clk 0:00:31]}  Qe7 {[%clk 0:02:21]} 15. Nd6 {[%clk 0:00:31]}  Ne8 {[%clk 0:02:19]} 16. h3 {[%clk 0:00:28]}  Bh5 {[%clk 0:02:18]} 17. Nxe8 {[%clk 0:00:11]}  Rfxe8 {[%clk 0:02:18]} 18. Rd2 {[%clk 0:00:11]}  e4 {[%clk 0:02:16]} 19. e3 {[%clk 0:00:11]}  Rab8 {[%clk 0:02:13]} 20. Rc1 {[%clk 0:00:06]}  Rb5 {[%clk 0:02:10]} 21. Rd4 {[%clk 0:00:05]}  Reb8 {[%clk 0:02:09]} 22. b3 {[%clk 0:00:06]}  Rb4 {[%clk 0:02:09]} 23. Qc3 {[%clk 0:00:05]}  Be2 {[%clk 0:02:05]} 24. Rxb4 {[%clk 0:00:05]}  axb4 {[%clk 0:02:04]} 25. Qd4 {[%clk 0:00:05]}  h6 {[%clk 0:01:59]} 26. Bf1 {[%clk 0:00:05]}  Bxf1 {[%clk 0:01:58]} 27. Kxf1 {[%clk 0:00:06]}  Rb5 {[%clk 0:01:57]} 28. Kg2 {[%clk 0:00:06]}  f6 {[%clk 0:01:51]} 29. h4 {[%clk 0:00:06]}  h5 {[%clk 0:01:50]} 30. Rc2 {[%clk 0:00:06]}  Kh7 {[%clk 0:01:50]} 31. Rc1 {[%clk 0:00:06]}  Qe6 {[%clk 0:01:50]} 32. Rc2 {[%clk 0:00:06]}  Qc8 {[%clk 0:01:46]} 33. Qd2 {[%clk 0:00:06]}  Qf8 {[%clk 0:01:43]} 34. Qd4 {[%clk 0:00:06]}  Qf7 {[%clk 0:01:44]} 35. Rc1 {[%clk 0:00:06]}  Qg6 {[%clk 0:01:44]} 36. Ra1 {[%clk 0:00:06]}  Qf5 {[%clk 0:01:41]} 37. a3 {[%clk 0:00:06]}  Qf3+ {[%clk 0:01:41]} 38. Kg1 {[%clk 0:00:06]}  bxa3 {[%clk 0:01:40]} 39. Rxa3 {[%clk 0:00:07]}  Qe2 {[%clk 0:01:21]} 40. Ra7 {[%clk 0:00:05]}  Qd1+ {[%clk 0:01:21]} 41. Qxd1 {[%clk 0:00:05]} 1-0


[Site "https://www.chess.com"]